{"text_format":"1","workbook":"xlsx","n_sheets":11,"sheets":["Skema 1","Skema 2","Skema 3","Skema 4","Skema 5","Skema 6","Skema 7","Rapport","Rapport SGH","Afstemning af ikke fordelte","Afstemning øvrige region"],"not_rendered":{"charts":0,"images":0,"macros":1,"external_links":0,"defined_names":21,"comments":0,"pivot_tables":0},"unopened":[],"bounds":{"document_bytes":16777216,"sheet_cells":100000,"rows_first":2000,"rows_last":500,"rows_between":2000,"halvings":0,"cell_chars":16384,"cell_head_chars":4096},"cells_cut":0,"cells_raw":0,"read":"whole","date_system":"1900"}

{"sheet":"Skema 1","index":0,"n_rows":45,"n_cols":9,"rows_kept":45,"cut":false,"hidden":false,"merged":[[1,1,2,8]]}
["Region Nordjylland, somatiske sygehuse."]
[null,"Skema 1: Udgifter og indtægter på sygehusene/enhederne, eksklusiv omkostningssted 0001, Fælleskonto. (1.000 kr.)"]
[]
[]
["Sygehus",null,2023,2022,2021,2020,"Δ2022-2023","% afvigelse","Begrundelse"]
["Aalborg Universitetshospital ",null,null,null,null,null,{"$f":"IF(ISERROR(#REF! -#REF!)=TRUE,\"\",#REF! -#REF!)","v":""},{"$f":"IF(ISERROR((((#REF! -#REF!)/#REF!)*100)=TRUE),\"\",IF((((#REF! -#REF!)/#REF!)*100)<-7,FIXED(((#REF! -#REF!)/#REF!)*100, 1,TRUE) &\"%\" & \"▼\",IF((((#REF! -#REF!)/#REF!)*100)>7,FIXED(((#REF! -#REF!)/#REF!)*100, 1,TRUE) &\"%\" &\"▲\",FIXED(((#REF! -#REF!)/#REF!)*100, 1,TRUE)&\"%\")))","v":""}]
["Aalborg Universitetshospital ","Hovedart 1: Lønninger",4119493.3119999999,4097728.8879999998,3882922.3309999998,3719064.8450000002,{"$f":"IF(ISERROR(C7- D7)=TRUE,\"\",C7 - D7)","v":21764.424000000115},{"$f":"IF(ISERROR((((C7- D7)/D7)*100)=TRUE),\"\",IF((((C7- D7)/D7)*100)<-7,FIXED(((C7- D7)/D7)*100, 1,TRUE) &\"%\" & \"▼\",IF((((C7- D7)/D7)*100)>7,FIXED(((C7- D7)/D7)*100, 1,TRUE) &\"%\" &\"▲\",FIXED(((C7- D7)/D7)*100, 1,TRUE)&\"%\")))","v":"0,5%"}]
["Aalborg Universitetshospital ","Hovedart 2: Varekøb",817403.87399999995,792023.80200000003,763008.74399999995,734012.85699999996,25380.071999999927,"3,2%"]
["Aalborg Universitetshospital ","Hovedart 4: Tjenesteydelser m.v. ",716547.80299999996,760650.37,641318.5,551677.46900000004,-44102.567000000039,"-5,8%"]
["Aalborg Universitetshospital ","Hovedart 5: Tilskud og overførsler",20,20,20,40,0,"0,0%"]
["Aalborg Universitetshospital ","Hovedart 6: Finansudgifter",null,null,null,null,0,""]
["Aalborg Universitetshospital ","Hovedart 7: Indtægter",-136232.33600000001,-127107.72500000001,-119240.53200000001,-88417.680999999997,-9124.6110000000044,"7,2%▲"]
["Aalborg Universitetshospital ","Hovedart 8: Finansindtægter",null,null,null,null,0,""]
["Aalborg Universitetshospital ","Hovedart 9: Interne udgifter og indtægter",1032626.47,1005242.1310000001,981822.82200000004,1012927.961,27384.33899999992,"2,7%"]
["Aalborg Universitetshospital ","I alt",{"$f":"SUMIFS((C7:C14),(A7:A14),A15)","v":6549859.1229999997},{"$f":"SUMIFS((D7:D14),(A7:A14),A15)","v":6528557.466},{"$f":"SUMIFS((E7:E14),(A7:A14),A15)","v":6149851.8649999993},{"$f":"SUMIFS((F7:F14),(A7:A14),A15)","v":5929305.4510000004},21301.656999999657,"0,3%"]
["Regionshospital Nordjylland",null,null,null,null,null,0,""]
["Regionshospital Nordjylland","Hovedart 1: Lønninger",972686.60800000001,983363.10400000005,928182.45900000003,886869.99899999995,-10676.496000000043,"-1,1%"]
["Regionshospital Nordjylland","Hovedart 2: Varekøb",151082.73199999999,158622.42000000001,154810.16099999999,127039.18799999999,-7539.6880000000237,"-4,8%"]
["Regionshospital Nordjylland","Hovedart 4: Tjenesteydelser m.v. ",175313.61300000001,160416.29999999999,139363.97099999999,129678.829,14897.313000000024,"9,3%▲"]
["Regionshospital Nordjylland","Hovedart 5: Tilskud og overførsler",10,10,null,10,0,"0,0%"]
["Regionshospital Nordjylland","Hovedart 6: Finansudgifter",null,null,null,null,0,""]
["Regionshospital Nordjylland","Hovedart 7: Indtægter",-28026.983,-26212.526000000002,-25001.606,-17096.725999999999,-1814.4569999999985,"6,9%"]
["Regionshospital Nordjylland","Hovedart 8: Finansindtægter",-49.999000000000002,-84.665000000000006,-99.364999999999995,-91.665000000000006,34.666000000000004,"-40,9%▼"]
["Regionshospital Nordjylland","Hovedart 9: Interne udgifter og indtægter",45812.523000000001,49662.544999999998,44486.790999999997,40889.440999999999,-3850.0219999999972,"-7,8%▼"]
["Regionshospital Nordjylland","I alt",{"$f":"SUMIFS((C7:C24),(A7:A24),A25)","v":1316828.4940000002},{"$f":"SUMIFS((D7:D24),(A7:A24),A25)","v":1325777.1779999998},{"$f":"SUMIFS((E7:E24),(A7:A24),A25)","v":1241742.4110000001},{"$f":"SUMIFS((F7:F24),(A7:A24),A25)","v":1167299.0659999999},-8948.6839999996591,"-0,7%"]
["Øvrige i Region Nordjylland",null,null,null,null,null,0,""]
["Øvrige i Region Nordjylland","Hovedart 1: Lønninger",null,null,null,null,0,""]
["Øvrige i Region Nordjylland","Hovedart 2: Varekøb",null,null,null,null,0,""]
["Øvrige i Region Nordjylland","Hovedart 4: Tjenesteydelser m.v. ",null,null,null,null,0,""]
["Øvrige i Region Nordjylland","Hovedart 5: Tilskud og overførsler",null,null,null,null,0,""]
["Øvrige i Region Nordjylland","Hovedart 6: Finansudgifter",null,null,null,null,0,""]
["Øvrige i Region Nordjylland","Hovedart 7: Indtægter",null,null,null,null,0,""]
["Øvrige i Region Nordjylland","Hovedart 8: Finansindtægter",null,null,null,null,0,""]
["Øvrige i Region Nordjylland","Hovedart 9: Interne udgifter og indtægter",null,null,null,null,0,""]
["Øvrige i Region Nordjylland","I alt",{"$f":"SUMIFS((C7:C34),(A7:A34),A35)","v":0},{"$f":"SUMIFS((D7:D34),(A7:A34),A35)","v":0},{"$f":"SUMIFS((E7:E34),(A7:A34),A35)","v":0},{"$f":"SUMIFS((F7:F34),(A7:A34),A35)","v":0},0,""]
["Ikke fordelte udgifter og indtægter",null,null,null,null,null,0,""]
["Ikke fordelte udgifter og indtægter","Hovedart 1: Lønninger",null,null,null,null,0,""]
["Ikke fordelte udgifter og indtægter","Hovedart 2: Varekøb",null,null,null,null,0,""]
["Ikke fordelte udgifter og indtægter","Hovedart 4: Tjenesteydelser m.v. ",null,null,null,null,0,""]
["Ikke fordelte udgifter og indtægter","Hovedart 5: Tilskud og overførsler",null,null,null,null,0,""]
["Ikke fordelte udgifter og indtægter","Hovedart 6: Finansudgifter",null,null,null,null,0,""]
["Ikke fordelte udgifter og indtægter","Hovedart 7: Indtægter",null,null,null,null,0,""]
["Ikke fordelte udgifter og indtægter","Hovedart 8: Finansindtægter",null,null,null,null,0,""]
["Ikke fordelte udgifter og indtægter","Hovedart 9: Interne udgifter og indtægter",null,null,null,null,0,""]
["Ikke fordelte udgifter og indtægter","I alt",{"$f":"SUMIFS((C7:C44),(A7:A44),A45)","v":0},{"$f":"SUMIFS((D7:D44),(A7:A44),A45)","v":0},{"$f":"SUMIFS((E7:E44),(A7:A44),A45)","v":0},{"$f":"SUMIFS((F7:F44),(A7:A44),A45)","v":0},0,""]

{"sheet":"Skema 2","index":1,"n_rows":45,"n_cols":9,"rows_kept":45,"cut":false,"hidden":false,"merged":[[1,1,2,8]]}
["Region Nordjylland, somatiske sygehuse."]
[null,"Skema 2: Fællesudgifter og -indtægter vedrørende sygehusene.\n(1.000 kr.)"]
[]
[]
["Sygehus",null,2023,2022,2021,2020,"Δ2022-2023","% afvigelse","Begrundelse"]
["Aalborg Universitetshospital ",null,null,null,null,null,{"$f":"IF(ISERROR(#REF! -#REF!)=TRUE,\"\",#REF! -#REF!)","v":""},{"$f":"IF(ISERROR((((#REF! -#REF!)/#REF!)*100)=TRUE),\"\",IF((((#REF! -#REF!)/#REF!)*100)<-7,FIXED(((#REF! -#REF!)/#REF!)*100, 1,TRUE) &\"%\" & \"▼\",IF((((#REF! -#REF!)/#REF!)*100)>7,FIXED(((#REF! -#REF!)/#REF!)*100, 1,TRUE) &\"%\" &\"▲\",FIXED(((#REF! -#REF!)/#REF!)*100, 1,TRUE)&\"%\")))","v":""}]
["Aalborg Universitetshospital ","Hovedart 1: Lønninger",238263.117,213670.019,205708.28700000001,189888.14499999999,{"$f":"IF(ISERROR(C7- D7)=TRUE,\"\",C7 - D7)","v":24593.097999999998},{"$f":"IF(ISERROR((((C7- D7)/D7)*100)=TRUE),\"\",IF((((C7- D7)/D7)*100)<-7,FIXED(((C7- D7)/D7)*100, 1,TRUE) &\"%\" & \"▼\",IF((((C7- D7)/D7)*100)>7,FIXED(((C7- D7)/D7)*100, 1,TRUE) &\"%\" &\"▲\",FIXED(((C7- D7)/D7)*100, 1,TRUE)&\"%\")))","v":"11,5%▲"}]
["Aalborg Universitetshospital ","Hovedart 2: Varekøb",729044.125,762565.79299999995,787148.91200000001,763735.35900000005,-33521.667999999947,"-4,4%"]
["Aalborg Universitetshospital ","Hovedart 4: Tjenesteydelser m.v. ",168128.39,186072.01199999999,183719.29300000001,137400.70600000001,-17943.621999999974,"-9,6%▼"]
["Aalborg Universitetshospital ","Hovedart 5: Tilskud og overførsler",4528.5839999999998,null,null,null,4528.5839999999998,""]
["Aalborg Universitetshospital ","Hovedart 6: Finansudgifter",null,null,null,null,0,""]
["Aalborg Universitetshospital ","Hovedart 7: Indtægter",-22715.379000000001,-11253.079,-10255.995000000001,-11225.928,-11462.300000000001,"101,9%▲"]
["Aalborg Universitetshospital ","Hovedart 8: Finansindtægter",-28309.667000000001,null,null,null,-28309.667000000001,""]
["Aalborg Universitetshospital ","Hovedart 9: Interne udgifter og indtægter",-813461.25199999998,-802172.995,-801061.36600000004,-794479.57499999995,-11288.256999999983,"1,4%"]
["Aalborg Universitetshospital ","I alt",{"$f":"SUMIFS((C7:C14),(A7:A14),A15)","v":275477.91800000018},{"$f":"SUMIFS((D7:D14),(A7:A14),A15)","v":348881.75000000012},{"$f":"SUMIFS((E7:E14),(A7:A14),A15)","v":365259.13099999994},{"$f":"SUMIFS((F7:F14),(A7:A14),A15)","v":285318.70699999994},-73403.831999999937,"-21,0%▼"]
["Regionshospital Nordjylland",null,null,null,null,null,0,""]
["Regionshospital Nordjylland","Hovedart 1: Lønninger",45282.815999999999,41223.769,38594.908000000003,34103.51,4059.0469999999987,"9,8%▲"]
["Regionshospital Nordjylland","Hovedart 2: Varekøb",58727.163999999997,61938.784,60765.925000000003,53606.631000000001,-3211.6200000000026,"-5,2%"]
["Regionshospital Nordjylland","Hovedart 4: Tjenesteydelser m.v. ",46274.004999999997,51546.809000000001,47123.262999999999,35763.731,-5272.8040000000037,"-10,2%▼"]
["Regionshospital Nordjylland","Hovedart 5: Tilskud og overførsler",910.923,null,null,null,910.923,""]
["Regionshospital Nordjylland","Hovedart 6: Finansudgifter",null,null,null,null,0,""]
["Regionshospital Nordjylland","Hovedart 7: Indtægter",-3878.732,-1800.8009999999999,-1499.5070000000001,-1572.366,-2077.931,"115,4%▲"]
["Regionshospital Nordjylland","Hovedart 8: Finansindtægter",-5694.482,null,null,null,-5694.482,""]
["Regionshospital Nordjylland","Hovedart 9: Interne udgifter og indtægter",-65351.144999999997,-67451.672000000006,-59444.012000000002,-53003.800999999999,2100.5270000000091,"-3,1%"]
["Regionshospital Nordjylland","I alt",{"$f":"SUMIFS((C7:C24),(A7:A24),A25)","v":76270.549000000028},{"$f":"SUMIFS((D7:D24),(A7:A24),A25)","v":85456.888999999981},{"$f":"SUMIFS((E7:E24),(A7:A24),A25)","v":85540.577000000005},{"$f":"SUMIFS((F7:F24),(A7:A24),A25)","v":68897.705000000016},-9186.3399999999529,"-10,7%▼"]
["Øvrige i Region Nordjylland",null,null,null,null,null,0,""]
["Øvrige i Region Nordjylland","Hovedart 1: Lønninger",null,null,null,null,0,""]
["Øvrige i Region Nordjylland","Hovedart 2: Varekøb",null,null,null,null,0,""]
["Øvrige i Region Nordjylland","Hovedart 4: Tjenesteydelser m.v. ",null,null,null,null,0,""]
["Øvrige i Region Nordjylland","Hovedart 5: Tilskud og overførsler",null,null,null,null,0,""]
["Øvrige i Region Nordjylland","Hovedart 6: Finansudgifter",null,null,null,null,0,""]
["Øvrige i Region Nordjylland","Hovedart 7: Indtægter",null,null,null,null,0,""]
["Øvrige i Region Nordjylland","Hovedart 8: Finansindtægter",null,null,null,null,0,""]
["Øvrige i Region Nordjylland","Hovedart 9: Interne udgifter og indtægter",null,null,null,null,0,""]
["Øvrige i Region Nordjylland","I alt",{"$f":"SUMIFS((C7:C34),(A7:A34),A35)","v":0},{"$f":"SUMIFS((D7:D34),(A7:A34),A35)","v":0},{"$f":"SUMIFS((E7:E34),(A7:A34),A35)","v":0},{"$f":"SUMIFS((F7:F34),(A7:A34),A35)","v":0},0,""]
["Ikke fordelte udgifter og indtægter",null,null,null,null,null,0,""]
["Ikke fordelte udgifter og indtægter","Hovedart 1: Lønninger",502667.87099999998,526616.61800000002,474529.91700000002,317972.69799999997,-23948.747000000032,"-4,5%"]
["Ikke fordelte udgifter og indtægter","Hovedart 2: Varekøb",106440.841,248200.674,217296.878,221838.07399999999,-141759.83299999998,"-57,1%▼"]
["Ikke fordelte udgifter og indtægter","Hovedart 4: Tjenesteydelser m.v. ",1347766.1159999999,1463375.439,1726426.625,1592790.493,-115609.32300000009,"-7,9%▼"]
["Ikke fordelte udgifter og indtægter","Hovedart 5: Tilskud og overførsler",163399.03599999999,182814.53899999999,141314.97200000001,204873.02299999999,-19415.502999999997,"-10,6%▼"]
["Ikke fordelte udgifter og indtægter","Hovedart 6: Finansudgifter",40164.815000000002,20522.367999999999,null,null,19642.447000000004,"95,7%▲"]
["Ikke fordelte udgifter og indtægter","Hovedart 7: Indtægter",-630129.23100000003,-592961.58299999998,-569783.93700000003,-540685.58200000005,-37167.648000000045,"6,3%"]
["Ikke fordelte udgifter og indtægter","Hovedart 8: Finansindtægter",0,-282367.75799999997,-364987.826,-63134.343999999997,282367.75799999997,"-100,0%▼"]
["Ikke fordelte udgifter og indtægter","Hovedart 9: Interne udgifter og indtægter",-311195.74699999997,-311510.45600000001,-284567.34700000001,-317387.61300000001,314.70900000003166,"-0,1%"]
["Ikke fordelte udgifter og indtægter","I alt",{"$f":"SUMIFS((C7:C44),(A7:A44),A45)","v":1219113.7009999994},{"$f":"SUMIFS((D7:D44),(A7:A44),A45)","v":1254689.8409999998},{"$f":"SUMIFS((E7:E44),(A7:A44),A45)","v":1340229.2820000001},{"$f":"SUMIFS((F7:F44),(A7:A44),A45)","v":1416266.7490000003},-35576.140000000363,"-2,8%"]

{"sheet":"Skema 3","index":2,"n_rows":33,"n_cols":9,"rows_kept":33,"cut":false,"hidden":false,"merged":[[1,1,2,8]]}
["Region Nordjylland, somatiske sygehuse."]
[null,"Skema 3:Regionale fællesudgifter og -indtægter. (1.000 kr.)"]
[]
[]
["Sygehus",null,2023,2022,2021,2020,"Δ2022-2023","% afvigelse","Begrundelse"]
["Aalborg Universitetshospital ",null,null,null,null,null,{"$f":"IF(ISERROR(#REF! -#REF!)=TRUE,\"\",#REF! -#REF!)","v":""},{"$f":"IF(ISERROR((((#REF! -#REF!)/#REF!)*100)=TRUE),\"\",IF((((#REF! -#REF!)/#REF!)*100)<-7,FIXED(((#REF! -#REF!)/#REF!)*100, 1,TRUE) &\"%\" & \"▼\",IF((((#REF! -#REF!)/#REF!)*100)>7,FIXED(((#REF! -#REF!)/#REF!)*100, 1,TRUE) &\"%\" &\"▲\",FIXED(((#REF! -#REF!)/#REF!)*100, 1,TRUE)&\"%\")))","v":""}]
["Aalborg Universitetshospital ","1.70.50: Andel af fællesudgifter",146401.49799999999,134435.84599999999,127097.14,118303.09,{"$f":"IF(ISERROR(C7- D7)=TRUE,\"\",C7 - D7)","v":11965.652000000002},{"$f":"IF(ISERROR((((C7- D7)/D7)*100)=TRUE),\"\",IF((((C7- D7)/D7)*100)<-7,FIXED(((C7- D7)/D7)*100, 1,TRUE) &\"%\" & \"▼\",IF((((C7- D7)/D7)*100)>7,FIXED(((C7- D7)/D7)*100, 1,TRUE) &\"%\" &\"▲\",FIXED(((C7- D7)/D7)*100, 1,TRUE)&\"%\")))","v":"8,9%▲"}]
["Aalborg Universitetshospital ","1.60.40: Andel af central administration af sundhed (til og med 2019)",null,null,null,null,0,""]
["Aalborg Universitetshospital ","1.60.41: Andel af øvrige udgifter og indtægter",2268.864,1863.7829999999999,1673.6949999999999,2282.953,405.08100000000013,"21,7%▲"]
["Aalborg Universitetshospital ","1.50.33: Andel af central administration af sundhed (ekskl. psykiatri)",17824.386999999999,19543.841,19909.414000000001,17850.706999999999,-1719.4540000000015,"-8,8%▼"]
["Aalborg Universitetshospital ","1.50.35: Administration af det psykiatriske område (kun central del)",null,null,null,null,0,""]
["Aalborg Universitetshospital ","I alt",{"$f":"SUMIFS((C7:C11),(A7:A11),A12)","v":166494.74899999998},{"$f":"SUMIFS((D7:D11),(A7:A11),A12)","v":155843.46999999997},{"$f":"SUMIFS((E7:E11),(A7:A11),A12)","v":148680.24900000001},{"$f":"SUMIFS((F7:F11),(A7:A11),A12)","v":138436.75},10651.27900000001,"6,8%"]
["Regionshospital Nordjylland",null,null,null,null,null,0,""]
["Regionshospital Nordjylland","1.70.50: Andel af fællesudgifter",41159.904000000002,38007.591999999997,35821.122000000003,32772.188000000002,3152.3120000000054,"8,3%▲"]
["Regionshospital Nordjylland","1.60.40: Andel af central administration af sundhed (til og med 2019)",null,null,null,null,0,""]
["Regionshospital Nordjylland","1.60.41: Andel af øvrige udgifter og indtægter",637.87599999999998,526.92700000000002,471.71499999999997,632.42100000000005,110.94899999999996,"21,1%▲"]
["Regionshospital Nordjylland","1.50.33: Andel af central administration af sundhed (ekskl. psykiatri)",5011.2089999999998,5525.4189999999999,5611.2790000000005,4944.9830000000002,-514.21,"-9,3%▼"]
["Regionshospital Nordjylland","1.50.35: Administration af det psykiatriske område (kun central del)",null,null,null,null,0,""]
["Regionshospital Nordjylland","I alt",{"$f":"SUMIFS((C7:C18),(A7:A18),A19)","v":46808.989000000001},{"$f":"SUMIFS((D7:D18),(A7:A18),A19)","v":44059.938000000002},{"$f":"SUMIFS((E7:E18),(A7:A18),A19)","v":41904.116000000002},{"$f":"SUMIFS((F7:F18),(A7:A18),A19)","v":38349.592000000004},2749.0509999999995,"6,2%"]
["Øvrige i Region Nordjylland",null,null,null,null,null,0,""]
["Øvrige i Region Nordjylland","1.70.50: Andel af fællesudgifter",null,null,null,null,0,""]
["Øvrige i Region Nordjylland","1.60.40: Andel af central administration af sundhed (til og med 2019)",null,null,null,null,0,""]
["Øvrige i Region Nordjylland","1.60.41: Andel af øvrige udgifter og indtægter",null,null,null,null,0,""]
["Øvrige i Region Nordjylland","1.50.33: Andel af central administration af sundhed (ekskl. psykiatri)",null,null,null,null,0,""]
["Øvrige i Region Nordjylland","1.50.35: Administration af det psykiatriske område (kun central del)",null,null,null,null,0,""]
["Øvrige i Region Nordjylland","I alt",{"$f":"SUMIFS((C7:C25),(A7:A25),A26)","v":0},{"$f":"SUMIFS((D7:D25),(A7:A25),A26)","v":0},{"$f":"SUMIFS((E7:E25),(A7:A25),A26)","v":0},{"$f":"SUMIFS((F7:F25),(A7:A25),A26)","v":0},0,""]
["Ikke fordelte udgifter og indtægter",null,null,null,null,null,0,""]
["Ikke fordelte udgifter og indtægter","1.70.50: Andel af fællesudgifter",254008.497,240988.77600000001,223985.342,201076.345,13019.72099999999,"5,4%"]
["Ikke fordelte udgifter og indtægter","1.60.40: Andel af central administration af sundhed (til og med 2019)",null,null,null,null,0,""]
["Ikke fordelte udgifter og indtægter","1.60.41: Andel af øvrige udgifter og indtægter",2788.3029999999999,2380.7370000000001,2123.6729999999998,1341.7339999999999,407.5659999999998,"17,1%▲"]
["Ikke fordelte udgifter og indtægter","1.50.33: Andel af central administration af sundhed (ekskl. psykiatri)",18607.429,20860.72,21117.876,19198.416000000001,-2253.2910000000011,"-10,8%▼"]
["Ikke fordelte udgifter og indtægter","1.50.35: Administration af det psykiatriske område (kun central del)",null,null,null,null,0,""]
["Ikke fordelte udgifter og indtægter","I alt",{"$f":"SUMIFS((C7:C32),(A7:A32),A33)","v":275404.22899999999},{"$f":"SUMIFS((D7:D32),(A7:A32),A33)","v":264230.23300000001},{"$f":"SUMIFS((E7:E32),(A7:A32),A33)","v":247226.891},{"$f":"SUMIFS((F7:F32),(A7:A32),A33)","v":221616.495},11173.995999999985,"4,2%"]

{"sheet":"Skema 4","index":3,"n_rows":25,"n_cols":9,"rows_kept":25,"cut":false,"hidden":false,"merged":[[1,1,2,8]]}
["Region Nordjylland, somatiske sygehuse."]
[null,"Skema 4: Udgifter og indtægter til og fra psykiatriske afdelinger konteret på somatiske sygehuse. (1.000 kr.)"]
[]
[]
["Sygehus",null,2023,2022,2021,2020,"Δ2022-2023","% afvigelse","Begrundelse"]
["Aalborg Universitetshospital ",null,null,null,null,null,{"$f":"IF(ISERROR(#REF! -#REF!)=TRUE,\"\",#REF! -#REF!)","v":""},{"$f":"IF(ISERROR((((#REF! -#REF!)/#REF!)*100)=TRUE),\"\",IF((((#REF! -#REF!)/#REF!)*100)<-7,FIXED(((#REF! -#REF!)/#REF!)*100, 1,TRUE) &\"%\" & \"▼\",IF((((#REF! -#REF!)/#REF!)*100)>7,FIXED(((#REF! -#REF!)/#REF!)*100, 1,TRUE) &\"%\" &\"▲\",FIXED(((#REF! -#REF!)/#REF!)*100, 1,TRUE)&\"%\")))","v":""}]
["Aalborg Universitetshospital ","Korrektion",null,null,null,null,{"$f":"IF(ISERROR(C7- D7)=TRUE,\"\",C7 - D7)","v":0},{"$f":"IF(ISERROR((((C7- D7)/D7)*100)=TRUE),\"\",IF((((C7- D7)/D7)*100)<-7,FIXED(((C7- D7)/D7)*100, 1,TRUE) &\"%\" & \"▼\",IF((((C7- D7)/D7)*100)>7,FIXED(((C7- D7)/D7)*100, 1,TRUE) &\"%\" &\"▲\",FIXED(((C7- D7)/D7)*100, 1,TRUE)&\"%\")))","v":""}]
["Aalborg Universitetshospital ","Lønudg. på psyk. afd.,somatiske sygehuse",null,null,null,null,0,""]
["Aalborg Universitetshospital ","Øvrige udg. til psyk. afd.,somatiske sygehuse",null,null,null,null,0,""]
["Aalborg Universitetshospital ","I alt",{"$f":"SUMIFS((C7:C9),(A7:A9),A10)","v":0},{"$f":"SUMIFS((D7:D9),(A7:A9),A10)","v":0},{"$f":"SUMIFS((E7:E9),(A7:A9),A10)","v":0},{"$f":"SUMIFS((F7:F9),(A7:A9),A10)","v":0},0,""]
["Regionshospital Nordjylland",null,null,null,null,null,0,""]
["Regionshospital Nordjylland","Korrektion",null,null,null,null,0,""]
["Regionshospital Nordjylland","Lønudg. på psyk. afd.,somatiske sygehuse",null,null,null,null,0,""]
["Regionshospital Nordjylland","Øvrige udg. til psyk. afd.,somatiske sygehuse",null,null,null,null,0,""]
["Regionshospital Nordjylland","I alt",{"$f":"SUMIFS((C7:C14),(A7:A14),A15)","v":0},{"$f":"SUMIFS((D7:D14),(A7:A14),A15)","v":0},{"$f":"SUMIFS((E7:E14),(A7:A14),A15)","v":0},{"$f":"SUMIFS((F7:F14),(A7:A14),A15)","v":0},0,""]
["Øvrige i Region Nordjylland",null,null,null,null,null,0,""]
["Øvrige i Region Nordjylland","Korrektion",null,null,null,null,0,""]
["Øvrige i Region Nordjylland","Lønudg. på psyk. afd.,somatiske sygehuse",null,null,null,null,0,""]
["Øvrige i Region Nordjylland","Øvrige udg. til psyk. afd.,somatiske sygehuse",null,null,null,null,0,""]
["Øvrige i Region Nordjylland","I alt",{"$f":"SUMIFS((C7:C19),(A7:A19),A20)","v":0},{"$f":"SUMIFS((D7:D19),(A7:A19),A20)","v":0},{"$f":"SUMIFS((E7:E19),(A7:A19),A20)","v":0},{"$f":"SUMIFS((F7:F19),(A7:A19),A20)","v":0},0,""]
["Ikke fordelte udgifter og indtægter",null,null,null,null,null,0,""]
["Ikke fordelte udgifter og indtægter","Korrektion",null,null,null,null,0,""]
["Ikke fordelte udgifter og indtægter","Lønudg. på psyk. afd.,somatiske sygehuse",null,null,null,null,0,""]
["Ikke fordelte udgifter og indtægter","Øvrige udg. til psyk. afd.,somatiske sygehuse",null,null,null,null,0,""]
["Ikke fordelte udgifter og indtægter","I alt",{"$f":"SUMIFS((C7:C24),(A7:A24),A25)","v":0},{"$f":"SUMIFS((D7:D24),(A7:A24),A25)","v":0},{"$f":"SUMIFS((E7:E24),(A7:A24),A25)","v":0},{"$f":"SUMIFS((F7:F24),(A7:A24),A25)","v":0},0,""]

{"sheet":"Skema 5","index":4,"n_rows":25,"n_cols":9,"rows_kept":25,"cut":false,"hidden":false,"merged":[[1,1,2,8]]}
["Region Nordjylland, somatiske sygehuse."]
[null,"Skema 5: Leasing- og huslejeudgifter. (1.000 kr.)"]
[]
[]
["Sygehus",null,2023,2022,2021,2020,"Δ2022-2023","% afvigelse","Begrundelse"]
["Aalborg Universitetshospital ",null,null,null,null,null,{"$f":"IF(ISERROR(#REF! -#REF!)=TRUE,\"\",#REF! -#REF!)","v":""},{"$f":"IF(ISERROR((((#REF! -#REF!)/#REF!)*100)=TRUE),\"\",IF((((#REF! -#REF!)/#REF!)*100)<-7,FIXED(((#REF! -#REF!)/#REF!)*100, 1,TRUE) &\"%\" & \"▼\",IF((((#REF! -#REF!)/#REF!)*100)>7,FIXED(((#REF! -#REF!)/#REF!)*100, 1,TRUE) &\"%\" &\"▲\",FIXED(((#REF! -#REF!)/#REF!)*100, 1,TRUE)&\"%\")))","v":""}]
["Aalborg Universitetshospital ","Andre udgifter",null,null,null,null,{"$f":"IF(ISERROR(C7- D7)=TRUE,\"\",C7 - D7)","v":0},{"$f":"IF(ISERROR((((C7- D7)/D7)*100)=TRUE),\"\",IF((((C7- D7)/D7)*100)<-7,FIXED(((C7- D7)/D7)*100, 1,TRUE) &\"%\" & \"▼\",IF((((C7- D7)/D7)*100)>7,FIXED(((C7- D7)/D7)*100, 1,TRUE) &\"%\" &\"▲\",FIXED(((C7- D7)/D7)*100, 1,TRUE)&\"%\")))","v":""}]
["Aalborg Universitetshospital ","Leasing- og lejeudgifter",13524.505999999999,29524.615000000002,21137.186000000002,22286.614000000001,-16000.109000000002,"-54,2%▼"]
["Aalborg Universitetshospital ","Huslejeudgifter",17544.987000000001,15666.038,14834.880999999999,14079.482,1878.9490000000005,"12,0%▲"]
["Aalborg Universitetshospital ","I alt",{"$f":"SUMIFS((C7:C9),(A7:A9),A10)","v":31069.493000000002},{"$f":"SUMIFS((D7:D9),(A7:A9),A10)","v":45190.653000000006},{"$f":"SUMIFS((E7:E9),(A7:A9),A10)","v":35972.067000000003},{"$f":"SUMIFS((F7:F9),(A7:A9),A10)","v":36366.096000000005},-14121.160000000003,"-31,2%▼"]
["Regionshospital Nordjylland",null,null,null,null,null,0,""]
["Regionshospital Nordjylland","Andre udgifter",null,null,null,null,0,""]
["Regionshospital Nordjylland","Leasing- og lejeudgifter",3223.56,7513.509,6597.66,6031.8919999999998,-4289.9490000000005,"-57,1%▼"]
["Regionshospital Nordjylland","Huslejeudgifter",497.84800000000001,525.50400000000002,469.779,452.89600000000002,-27.656000000000006,"-5,3%"]
["Regionshospital Nordjylland","I alt",{"$f":"SUMIFS((C7:C14),(A7:A14),A15)","v":3721.4079999999999},{"$f":"SUMIFS((D7:D14),(A7:A14),A15)","v":8039.0129999999999},{"$f":"SUMIFS((E7:E14),(A7:A14),A15)","v":7067.4390000000003},{"$f":"SUMIFS((F7:F14),(A7:A14),A15)","v":6484.7879999999996},-4317.6049999999996,"-53,7%▼"]
["Øvrige i Region Nordjylland",null,null,null,null,null,0,""]
["Øvrige i Region Nordjylland","Andre udgifter",null,null,null,null,0,""]
["Øvrige i Region Nordjylland","Leasing- og lejeudgifter",null,null,null,null,0,""]
["Øvrige i Region Nordjylland","Huslejeudgifter",null,null,null,null,0,""]
["Øvrige i Region Nordjylland","I alt",{"$f":"SUMIFS((C7:C19),(A7:A19),A20)","v":0},{"$f":"SUMIFS((D7:D19),(A7:A19),A20)","v":0},{"$f":"SUMIFS((E7:E19),(A7:A19),A20)","v":0},{"$f":"SUMIFS((F7:F19),(A7:A19),A20)","v":0},0,""]
["Ikke fordelte udgifter og indtægter",null,null,null,null,null,0,""]
["Ikke fordelte udgifter og indtægter","Andre udgifter",null,null,null,null,0,""]
["Ikke fordelte udgifter og indtægter","Leasing- og lejeudgifter",18082.991999999998,87202.99,176481.55799999999,155754.826,-69119.998000000007,"-79,3%▼"]
["Ikke fordelte udgifter og indtægter","Huslejeudgifter",null,null,null,null,0,""]
["Ikke fordelte udgifter og indtægter","I alt",{"$f":"SUMIFS((C7:C24),(A7:A24),A25)","v":18082.991999999998},{"$f":"SUMIFS((D7:D24),(A7:A24),A25)","v":87202.99},{"$f":"SUMIFS((E7:E24),(A7:A24),A25)","v":176481.55799999999},{"$f":"SUMIFS((F7:F24),(A7:A24),A25)","v":155754.826},-69119.998000000007,"-79,3%▼"]

{"sheet":"Skema 6","index":5,"n_rows":205,"n_cols":9,"rows_kept":205,"cut":false,"hidden":false,"merged":[[1,1,2,8]]}
["Region Nordjylland, somatiske sygehuse."]
[null,"Skema 6: Udgifter til andet end patientbehandling. (1.000 kr.)"]
[]
[]
["Sygehus",null,2023,2022,2021,2020,"Δ2022-2023","% afvigelse","Begrundelse"]
["Aalborg Universitetshospital ",null,null,null,null,null,{"$f":"IF(ISERROR(#REF! -#REF!)=TRUE,\"\",#REF! -#REF!)","v":""},{"$f":"IF(ISERROR((((#REF! -#REF!)/#REF!)*100)=TRUE),\"\",IF((((#REF! -#REF!)/#REF!)*100)<-7,FIXED(((#REF! -#REF!)/#REF!)*100, 1,TRUE) &\"%\" & \"▼\",IF((((#REF! -#REF!)/#REF!)*100)>7,FIXED(((#REF! -#REF!)/#REF!)*100, 1,TRUE) &\"%\" &\"▲\",FIXED(((#REF! -#REF!)/#REF!)*100, 1,TRUE)&\"%\")))","v":""}]
["Aalborg Universitetshospital ","Skema 6.1: Center for voldsramte (Bispebjerg)",null,null,null,null,{"$f":"IF(ISERROR(C7- D7)=TRUE,\"\",C7 - D7)","v":0},{"$f":"IF(ISERROR((((C7- D7)/D7)*100)=TRUE),\"\",IF((((C7- D7)/D7)*100)<-7,FIXED(((C7- D7)/D7)*100, 1,TRUE) &\"%\" & \"▼\",IF((((C7- D7)/D7)*100)>7,FIXED(((C7- D7)/D7)*100, 1,TRUE) &\"%\" &\"▲\",FIXED(((C7- D7)/D7)*100, 1,TRUE)&\"%\")))","v":""}]
["Aalborg Universitetshospital ","Skema 6.2: Ventilatørbistand i hjemmet, respiratorpatienter",null,null,null,null,0,""]
["Aalborg Universitetshospital ","Skema 6.3: Blodprøvetagning i eget hjem",null,null,null,null,0,""]
["Aalborg Universitetshospital ","Skema 6.4: Psykinfo + pårørende",null,null,null,null,0,""]
["Aalborg Universitetshospital ","Skema 6.5: Leveret udstyr til patienter i eget hjem, ilt og sonderemedier",null,null,null,null,0,""]
["Aalborg Universitetshospital ","Skema 6.6: Montebello (Nordsjællands Hospitaler)",null,null,null,null,0,""]
["Aalborg Universitetshospital ","Skema 6.7: Satspulje korrektioner mellem år",null,null,null,null,0,""]
["Aalborg Universitetshospital ","Skema 6.8: Klinisk farmakologisk rådgivning af praksissektoren",1455.9280000000001,1246,1081,700,209.92800000000011,"16,8%▲"]
["Aalborg Universitetshospital ","Skema 6.9: Tandregulering ifm. operation",null,null,null,null,0,""]
["Aalborg Universitetshospital ","Skema 6.10: Giftlinjen",null,null,null,null,0,""]
["Aalborg Universitetshospital ","Skema 6.11: Tjenestemandspensioner",null,null,null,null,0,""]
["Aalborg Universitetshospital ","Skema 6.12: Art 4.6 Betalinger til staten",6514.0929999999998,5689.6809999999996,5400.1559999999999,3086.9340000000002,824.41200000000026,"14,5%▲"]
["Aalborg Universitetshospital ","Skema 6.13: Art 4.7 Betalinger til kommuner",6067.79,2600.8159999999998,6170.9160000000002,3954.5140000000001,3466.9740000000002,"133,3%▲"]
["Aalborg Universitetshospital ","Skema 6.14: Art 4.8 Betalinger til andre regioner",557007.62800000003,538790.48199999996,495988.44400000002,383277.35499999998,18217.146000000066,"3,4%"]
["Aalborg Universitetshospital ","Skema 6.15: Art 7.6 Betalinger fra staten",-4398.9620000000004,-4283.7160000000003,-4246.4160000000002,-3968.681,-115.24600000000009,"2,7%"]
["Aalborg Universitetshospital ","Skema 6.16: Art 7.7 Betalinger fra kommuner",-3264.8589999999999,-3135.3939999999998,-3491.944,-1892.3050000000001,-129.46500000000015,"4,1%"]
["Aalborg Universitetshospital ","Skema 6.17: Art 7.8 Betalinger fra andre regioner",-138923.81899999999,-129442.838,-131642.698,-11847.878000000001,-9480.9809999999852,"7,3%▲"]
["Aalborg Universitetshospital ","Skema 6.18: Betalinger til selvejende, private og udenlandske sygehuse",156712.003,184691.44,129567.90700000001,74348.603000000003,-27979.437000000005,"-15,1%▼"]
["Aalborg Universitetshospital ","Skema 6.19: Dækningsafgift/ejendomsskat",12478.519,12476.052,12497.396000000001,11981.013000000001,2.467000000000553,"0,0%"]
["Aalborg Universitetshospital ","Skema 6.20: Forsikringer/erstatninger",null,null,null,null,0,""]
["Aalborg Universitetshospital ","Skema 6.21: Vederlagsfri Lab. –ydelser og andre ydelser til praksissektoren",200600.508,173671.484,170430.08100000001,182042.17,26929.024000000005,"15,5%▲"]
["Aalborg Universitetshospital ","Skema 6.22: Patienttransport",83197.894,64484.953000000001,82550.706999999995,79287.851999999999,18712.940999999999,"29,0%▲"]
["Aalborg Universitetshospital ","Skema 6.23: Serviceydelser til/fra andre institutioner eller sygehuse udenfor regionen",null,null,null,null,0,""]
["Aalborg Universitetshospital ","Skema 6.24: Udgifter til eksternt finansierede forskning",null,null,null,null,0,""]
["Aalborg Universitetshospital ","Skema 6.25: Forebyggelse rettet mod praksissektoren og kommuner",73.622,445.83600000000001,-99.557000000000002,1991.6320000000001,-372.214,"-83,5%▼"]
["Aalborg Universitetshospital ","Skema 6.26: Praksisreservelæger",null,null,null,null,0,""]
["Aalborg Universitetshospital ","Skema 6.27: Præhospital",68.796000000000006,86.765000000000001,206.21799999999999,845.76700000000005,-17.968999999999994,"-20,7%▼"]
["Aalborg Universitetshospital ","Skema 6.28: Udgifter til Danske Regioner (Kontigent, MedCom, Fællesproj.)",null,null,null,null,0,""]
["Aalborg Universitetshospital ","Skema 6.29: Hospice",676.93100000000004,668.04300000000001,641.149,986.60199999999998,8.8880000000000337,"1,3%"]
["Aalborg Universitetshospital ","Skema 6.30: Konsulenter(Praksis)",null,null,null,null,0,""]
["Aalborg Universitetshospital ","Skema 6.31: Videnskabsetisk Komité",null,null,null,null,0,""]
["Aalborg Universitetshospital ","Skema 6.32: Tolkebistand",2175.7130000000002,1380.6659999999999,1283.5989999999999,1250.0419999999999,795.04700000000025,"57,6%▲"]
["Aalborg Universitetshospital ","Skema 6.33: Dansk Center for Partikelterapi",null,null,null,null,{"$f":"IF(ISERROR(C39- D39)=TRUE,\"\",C39 - D39)","v":0},{"$f":"IF(ISERROR((((C39- D39)/D39)*100)=TRUE),\"\",IF((((C39- D39)/D39)*100)<-7,FIXED(((C39- D39)/D39)*100, 1,TRUE) &\"%\" & \"▼\",IF((((C39- D39)/D39)*100)>7,FIXED(((C39- D39)/D39)*100, 1,TRUE) &\"%\" &\"▲\",FIXED(((C39- D39)/D39)*100, 1,TRUE)&\"%\")))","v":""}]
["Aalborg Universitetshospital ","Skema 6.34: Politisk organisation – overførte udgifter fra funktion 4.10.01, 4.10.02 og 4.10.04",null,null,null,null,0,""]
["Aalborg Universitetshospital ","Skema 6.35: Øvrige udgifter, Region Sjælland",null,null,null,null,0,""]
["Aalborg Universitetshospital ","Skema 6.36: Sundhedsydelser ifm. specialsektor",221.703,257.71499999999997,null,null,-36.011999999999972,"-14,0%▼"]
["Aalborg Universitetshospital ","Skema 6.37: Udgifter til primær sundhed fra skema 2",null,null,null,null,0,""]
["Aalborg Universitetshospital ","Skema 6.38: Udgifter til primær sundhed fra skema 3",null,null,null,null,0,""]
["Aalborg Universitetshospital ","Skema 6.39: Særlige udgifter ifm. COVID-19",null,191932.394,200210.74400000001,158924.89199999999,-191932.394,"-100,0%▼"]
["Aalborg Universitetshospital ","Skema 6.40: Udleveret udstyr/tilbehør ifm. cochlear implantater",1535.569,2149.9479999999999,1284.287,null,-614.37899999999991,"-28,6%▼"]
["Aalborg Universitetshospital ","Skema 6.41: Luxturna-behandling, Rigshospitalet",null,null,null,null,0,""]
["Aalborg Universitetshospital ","Skema 6.42: Udleveret medicin",246998.88099999999,199409.508,303721.03600000002,null,47589.372999999992,"23,9%▲"]
["Aalborg Universitetshospital ","Skema 6.43: Udgifter ifm. sundhedsklynger",null,null,null,null,0,""]
["Aalborg Universitetshospital ","Skema 6.44: Ukrainske patienter under særlov eller asyl",null,null,null,null,0,""]
["Aalborg Universitetshospital ","Skema 6.45: Udgifter ifm. de særlige pladser i psykiatrien",null,null,null,null,0,""]
["Aalborg Universitetshospital ","Skema 6.46: Sikringsafdelingen, Region Sjælland",null,null,null,null,0,""]
["Aalborg Universitetshospital ","Skema 6.47: Øvrige (Kan kun benyttes efter aftale med Sundhedsdatastyrelsen)",null,null,null,null,0,""]
["Aalborg Universitetshospital ","Lukkede poster (må kun bruges af Sundhedsdatastyrelsen)",null,null,null,null,0,""]
["Aalborg Universitetshospital ","I alt",{"$f":"SUMIFS((C7:C54),(A7:A54),A55)","v":1129197.9379999998},{"$f":"SUMIFS((D7:D54),(A7:A54),A55)","v":1243119.8349999997},{"$f":"SUMIFS((E7:E54),(A7:A54),A55)","v":1271553.0249999999},{"$f":"SUMIFS((F7:F54),(A7:A54),A55)","v":884968.51199999987},-113921.89699999988,"-9,2%▼"]
["Regionshospital Nordjylland",null,null,null,null,null,0,""]
["Regionshospital Nordjylland","Skema 6.1: Center for voldsramte (Bispebjerg)",null,null,null,null,0,""]
["Regionshospital Nordjylland","Skema 6.2: Ventilatørbistand i hjemmet, respiratorpatienter",null,null,null,null,0,""]
["Regionshospital Nordjylland","Skema 6.3: Blodprøvetagning i eget hjem",null,null,null,null,0,""]
["Regionshospital Nordjylland","Skema 6.4: Psykinfo + pårørende",null,null,null,null,0,""]
["Regionshospital Nordjylland","Skema 6.5: Leveret udstyr til patienter i eget hjem, ilt og sonderemedier",null,null,null,197.68299999999999,0,""]
["Regionshospital Nordjylland","Skema 6.6: Montebello (Nordsjællands Hospitaler)",null,null,null,null,0,""]
["Regionshospital Nordjylland","Skema 6.7: Satspulje korrektioner mellem år",null,null,null,null,0,""]
["Regionshospital Nordjylland","Skema 6.8: Klinisk farmakologisk rådgivning af praksissektoren",null,null,null,null,0,""]
["Regionshospital Nordjylland","Skema 6.9: Tandregulering ifm. operation",null,null,null,null,0,""]
["Regionshospital Nordjylland","Skema 6.10: Giftlinjen",null,null,null,null,0,""]
["Regionshospital Nordjylland","Skema 6.11: Tjenestemandspensioner",null,null,null,null,0,""]
["Regionshospital Nordjylland","Skema 6.12: Art 4.6 Betalinger til staten",409.94200000000001,411.78500000000003,260.35199999999998,611.23599999999999,-1.8430000000000177,"-0,4%"]
["Regionshospital Nordjylland","Skema 6.13: Art 4.7 Betalinger til kommuner",576.35199999999998,93.741,1019.704,521.73500000000001,482.61099999999999,"514,8%▲"]
["Regionshospital Nordjylland","Skema 6.14: Art 4.8 Betalinger til andre regioner",1573.0029999999999,1770.173,20236.960999999999,5674.9260000000004,-197.17000000000007,"-11,1%▼"]
["Regionshospital Nordjylland","Skema 6.15: Art 7.6 Betalinger fra staten",-2751.5859999999998,-2434.306,-2381.2420000000002,-2011.299,{"$f":"IF(ISERROR(C71- D71)=TRUE,\"\",C71 - D71)","v":-317.27999999999975},{"$f":"IF(ISERROR((((C71- D71)/D71)*100)=TRUE),\"\",IF((((C71- D71)/D71)*100)<-7,FIXED(((C71- D71)/D71)*100, 1,TRUE) &\"%\" & \"▼\",IF((((C71- D71)/D71)*100)>7,FIXED(((C71- D71)/D71)*100, 1,TRUE) &\"%\" &\"▲\",FIXED(((C71- D71)/D71)*100, 1,TRUE)&\"%\")))","v":"13,0%▲"}]
["Regionshospital Nordjylland","Skema 6.16: Art 7.7 Betalinger fra kommuner",-252.67,-334.94200000000001,-198.285,null,82.27200000000002,"-24,6%▼"]
["Regionshospital Nordjylland","Skema 6.17: Art 7.8 Betalinger fra andre regioner",-14779.001,-1620.576,-13522.405000000001,null,-13158.424999999999,"812,0%▲"]
["Regionshospital Nordjylland","Skema 6.18: Betalinger til selvejende, private og udenlandske sygehuse",46209.917999999998,28271.77,18491.919999999998,11056.135,17938.147999999997,"63,4%▲"]
["Regionshospital Nordjylland","Skema 6.19: Dækningsafgift/ejendomsskat",7191.5330000000004,7149.326,6961.7049999999999,6597.098,42.207000000000335,"0,6%"]
["Regionshospital Nordjylland","Skema 6.20: Forsikringer/erstatninger",-0.45400000000000001,-0.434,-0.43,-0.42899999999999999,-2.0000000000000018E-2,"4,6%"]
["Regionshospital Nordjylland","Skema 6.21: Vederlagsfri Lab. –ydelser og andre ydelser til praksissektoren",48988.476999999999,42840.726999999999,37401.542999999998,37661.231,6147.75,"14,4%▲"]
["Regionshospital Nordjylland","Skema 6.22: Patienttransport",12176.953,10513.457,9957.3860000000004,9498.7729999999992,1663.4959999999992,"15,8%▲"]
["Regionshospital Nordjylland","Skema 6.23: Serviceydelser til/fra andre institutioner eller sygehuse udenfor regionen",null,null,null,null,0,""]
["Regionshospital Nordjylland","Skema 6.24: Udgifter til eksternt finansierede forskning",null,null,null,null,0,""]
["Regionshospital Nordjylland","Skema 6.25: Forebyggelse rettet mod praksissektoren og kommuner",null,null,null,null,0,""]
["Regionshospital Nordjylland","Skema 6.26: Praksisreservelæger",null,null,null,null,0,""]
["Regionshospital Nordjylland","Skema 6.27: Præhospital",null,1.837,3.6219999999999999,12.664,-1.837,"-100,0%▼"]
["Regionshospital Nordjylland","Skema 6.28: Udgifter til Danske Regioner (Kontigent, MedCom, Fællesproj.)",null,null,null,null,0,""]
["Regionshospital Nordjylland","Skema 6.29: Hospice",5766.4769999999999,5012.4870000000001,4937.2359999999999,4878.2740000000003,753.98999999999978,"15,0%▲"]
["Regionshospital Nordjylland","Skema 6.30: Konsulenter(Praksis)",null,null,null,null,0,""]
["Regionshospital Nordjylland","Skema 6.31: Videnskabsetisk Komité",null,null,null,null,0,""]
["Regionshospital Nordjylland","Skema 6.32: Tolkebistand",494.721,433.06599999999997,427.5,477.31700000000001,61.65500000000003,"14,2%▲"]
["Regionshospital Nordjylland","Skema 6.33: Dansk Center for Partikelterapi",null,null,null,null,0,""]
["Regionshospital Nordjylland","Skema 6.34: Politisk organisation – overførte udgifter fra funktion 4.10.01, 4.10.02 og 4.10.04",null,null,null,null,0,""]
["Regionshospital Nordjylland","Skema 6.35: Øvrige udgifter, Region Sjælland",null,null,null,null,0,""]
["Regionshospital Nordjylland","Skema 6.36: Sundhedsydelser ifm. specialsektor",null,null,null,null,0,""]
["Regionshospital Nordjylland","Skema 6.37: Udgifter til primær sundhed fra skema 2",null,null,null,null,0,""]
["Regionshospital Nordjylland","Skema 6.38: Udgifter til primær sundhed fra skema 3",null,null,null,null,0,""]
["Regionshospital Nordjylland","Skema 6.39: Særlige udgifter ifm. COVID-19",null,63659.785000000003,71814.679999999993,35117.06,-63659.785000000003,"-100,0%▼"]
["Regionshospital Nordjylland","Skema 6.40: Udleveret udstyr/tilbehør ifm. cochlear implantater",null,null,null,null,0,""]
["Regionshospital Nordjylland","Skema 6.41: Luxturna-behandling, Rigshospitalet",null,null,null,null,0,""]
["Regionshospital Nordjylland","Skema 6.42: Udleveret medicin",18138.945,16540.088,19933.605,null,1598.857,"9,7%▲"]
["Regionshospital Nordjylland","Skema 6.43: Udgifter ifm. sundhedsklynger",null,null,null,null,0,""]
["Regionshospital Nordjylland","Skema 6.44: Ukrainske patienter under særlov eller asyl",null,null,null,null,0,""]
["Regionshospital Nordjylland","Skema 6.45: Udgifter ifm. de særlige pladser i psykiatrien",null,null,null,null,0,""]
["Regionshospital Nordjylland","Skema 6.46: Sikringsafdelingen, Region Sjælland",null,null,null,null,0,""]
["Regionshospital Nordjylland","Skema 6.47: Øvrige (Kan kun benyttes efter aftale med Sundhedsdatastyrelsen)",null,null,null,null,{"$f":"IF(ISERROR(C103- D103)=TRUE,\"\",C103 - D103)","v":0},{"$f":"IF(ISERROR((((C103- D103)/D103)*100)=TRUE),\"\",IF((((C103- D103)/D103)*100)<-7,FIXED(((C103- D103)/D103)*100, 1,TRUE) &\"%\" & \"▼\",IF((((C103- D103)/D103)*100)>7,FIXED(((C103- D103)/D103)*100, 1,TRUE) &\"%\" &\"▲\",FIXED(((C103- D103)/D103)*100, 1,TRUE)&\"%\")))","v":""}]
["Regionshospital Nordjylland","Lukkede poster (må kun bruges af Sundhedsdatastyrelsen)",null,null,null,null,0,""]
["Regionshospital Nordjylland","I alt",{"$f":"SUMIFS((C7:C104),(A7:A104),A105)","v":123742.60999999999},{"$f":"SUMIFS((D7:D104),(A7:A104),A105)","v":172307.984},{"$f":"SUMIFS((E7:E104),(A7:A104),A105)","v":175343.85200000001},{"$f":"SUMIFS((F7:F104),(A7:A104),A105)","v":110292.40400000001},-48565.374000000011,"-28,2%▼"]
["Øvrige i Region Nordjylland",null,null,null,null,null,0,""]
["Øvrige i Region Nordjylland","Skema 6.1: Center for voldsramte (Bispebjerg)",null,null,null,null,0,""]
["Øvrige i Region Nordjylland","Skema 6.2: Ventilatørbistand i hjemmet, respiratorpatienter",null,null,null,null,0,""]
["Øvrige i Region Nordjylland","Skema 6.3: Blodprøvetagning i eget hjem",null,null,null,null,0,""]
["Øvrige i Region Nordjylland","Skema 6.4: Psykinfo + pårørende",null,null,null,null,0,""]
["Øvrige i Region Nordjylland","Skema 6.5: Leveret udstyr til patienter i eget hjem, ilt og sonderemedier",null,null,null,null,0,""]
["Øvrige i Region Nordjylland","Skema 6.6: Montebello (Nordsjællands Hospitaler)",null,null,null,null,0,""]
["Øvrige i Region Nordjylland","Skema 6.7: Satspulje korrektioner mellem år",null,null,null,null,0,""]
["Øvrige i Region Nordjylland","Skema 6.8: Klinisk farmakologisk rådgivning af praksissektoren",null,null,null,null,0,""]
["Øvrige i Region Nordjylland","Skema 6.9: Tandregulering ifm. operation",null,null,null,null,0,""]
["Øvrige i Region Nordjylland","Skema 6.10: Giftlinjen",null,null,null,null,0,""]
["Øvrige i Region Nordjylland","Skema 6.11: Tjenestemandspensioner",null,null,null,null,0,""]
["Øvrige i Region Nordjylland","Skema 6.12: Art 4.6 Betalinger til staten",null,null,null,null,0,""]
["Øvrige i Region Nordjylland","Skema 6.13: Art 4.7 Betalinger til kommuner",null,null,null,null,0,""]
["Øvrige i Region Nordjylland","Skema 6.14: Art 4.8 Betalinger til andre regioner",null,null,null,null,0,""]
["Øvrige i Region Nordjylland","Skema 6.15: Art 7.6 Betalinger fra staten",null,null,null,null,0,""]
["Øvrige i Region Nordjylland","Skema 6.16: Art 7.7 Betalinger fra kommuner",null,null,null,null,0,""]
["Øvrige i Region Nordjylland","Skema 6.17: Art 7.8 Betalinger fra andre regioner",null,null,null,null,0,""]
["Øvrige i Region Nordjylland","Skema 6.18: Betalinger til selvejende, private og udenlandske sygehuse",null,null,null,null,0,""]
["Øvrige i Region Nordjylland","Skema 6.19: Dækningsafgift/ejendomsskat",null,null,null,null,0,""]
["Øvrige i Region Nordjylland","Skema 6.20: Forsikringer/erstatninger",null,null,null,null,0,""]
["Øvrige i Region Nordjylland","Skema 6.21: Vederlagsfri Lab. –ydelser og andre ydelser til praksissektoren",null,null,null,null,0,""]
["Øvrige i Region Nordjylland","Skema 6.22: Patienttransport",null,null,null,null,0,""]
["Øvrige i Region Nordjylland","Skema 6.23: Serviceydelser til/fra andre institutioner eller sygehuse udenfor regionen",null,null,null,null,0,""]
["Øvrige i Region Nordjylland","Skema 6.24: Udgifter til eksternt finansierede forskning",null,null,null,null,0,""]
["Øvrige i Region Nordjylland","Skema 6.25: Forebyggelse rettet mod praksissektoren og kommuner",null,null,null,null,0,""]
["Øvrige i Region Nordjylland","Skema 6.26: Praksisreservelæger",null,null,null,null,0,""]
["Øvrige i Region Nordjylland","Skema 6.27: Præhospital",null,null,null,null,0,""]
["Øvrige i Region Nordjylland","Skema 6.28: Udgifter til Danske Regioner (Kontigent, MedCom, Fællesproj.)",null,null,null,null,0,""]
["Øvrige i Region Nordjylland","Skema 6.29: Hospice",null,null,null,null,{"$f":"IF(ISERROR(C135- D135)=TRUE,\"\",C135 - D135)","v":0},{"$f":"IF(ISERROR((((C135- D135)/D135)*100)=TRUE),\"\",IF((((C135- D135)/D135)*100)<-7,FIXED(((C135- D135)/D135)*100, 1,TRUE) &\"%\" & \"▼\",IF((((C135- D135)/D135)*100)>7,FIXED(((C135- D135)/D135)*100, 1,TRUE) &\"%\" &\"▲\",FIXED(((C135- D135)/D135)*100, 1,TRUE)&\"%\")))","v":""}]
["Øvrige i Region Nordjylland","Skema 6.30: Konsulenter(Praksis)",null,null,null,null,0,""]
["Øvrige i Region Nordjylland","Skema 6.31: Videnskabsetisk Komité",null,null,null,null,0,""]
["Øvrige i Region Nordjylland","Skema 6.32: Tolkebistand",null,null,null,null,0,""]
["Øvrige i Region Nordjylland","Skema 6.33: Dansk Center for Partikelterapi",null,null,null,null,0,""]
["Øvrige i Region Nordjylland","Skema 6.34: Politisk organisation – overførte udgifter fra funktion 4.10.01, 4.10.02 og 4.10.04",null,null,null,null,0,""]
["Øvrige i Region Nordjylland","Skema 6.35: Øvrige udgifter, Region Sjælland",null,null,null,null,0,""]
["Øvrige i Region Nordjylland","Skema 6.36: Sundhedsydelser ifm. specialsektor",null,null,null,null,0,""]
["Øvrige i Region Nordjylland","Skema 6.37: Udgifter til primær sundhed fra skema 2",null,null,null,null,0,""]
["Øvrige i Region Nordjylland","Skema 6.38: Udgifter til primær sundhed fra skema 3",null,null,null,null,0,""]
["Øvrige i Region Nordjylland","Skema 6.39: Særlige udgifter ifm. COVID-19",null,null,null,null,0,""]
["Øvrige i Region Nordjylland","Skema 6.40: Udleveret udstyr/tilbehør ifm. cochlear implantater",null,null,null,null,0,""]
["Øvrige i Region Nordjylland","Skema 6.41: Luxturna-behandling, Rigshospitalet",null,null,null,null,0,""]
["Øvrige i Region Nordjylland","Skema 6.42: Udleveret medicin",null,null,null,null,0,""]
["Øvrige i Region Nordjylland","Skema 6.43: Udgifter ifm. sundhedsklynger",null,null,null,null,0,""]
["Øvrige i Region Nordjylland","Skema 6.44: Ukrainske patienter under særlov eller asyl",null,null,null,null,0,""]
["Øvrige i Region Nordjylland","Skema 6.45: Udgifter ifm. de særlige pladser i psykiatrien",null,null,null,null,0,""]
["Øvrige i Region Nordjylland","Skema 6.46: Sikringsafdelingen, Region Sjælland",null,null,null,null,0,""]
["Øvrige i Region Nordjylland","Skema 6.47: Øvrige (Kan kun benyttes efter aftale med Sundhedsdatastyrelsen)",null,null,null,null,0,""]
["Øvrige i Region Nordjylland","Lukkede poster (må kun bruges af Sundhedsdatastyrelsen)",null,null,null,null,0,""]
["Øvrige i Region Nordjylland","I alt",{"$f":"SUMIFS((C7:C154),(A7:A154),A155)","v":0},{"$f":"SUMIFS((D7:D154),(A7:A154),A155)","v":0},{"$f":"SUMIFS((E7:E154),(A7:A154),A155)","v":0},{"$f":"SUMIFS((F7:F154),(A7:A154),A155)","v":0},0,""]
["Ikke fordelte udgifter og indtægter",null,null,null,null,null,0,""]
["Ikke fordelte udgifter og indtægter","Skema 6.1: Center for voldsramte (Bispebjerg)",null,null,null,null,0,""]
["Ikke fordelte udgifter og indtægter","Skema 6.2: Ventilatørbistand i hjemmet, respiratorpatienter",116777.997,108996.329,110986.451,109479.769,7781.6680000000051,"7,1%▲"]
["Ikke fordelte udgifter og indtægter","Skema 6.3: Blodprøvetagning i eget hjem",null,null,null,null,0,""]
["Ikke fordelte udgifter og indtægter","Skema 6.4: Psykinfo + pårørende",null,null,null,null,0,""]
["Ikke fordelte udgifter og indtægter","Skema 6.5: Leveret udstyr til patienter i eget hjem, ilt og sonderemedier",48579.476000000002,47905.175999999999,45106.195,44887.932999999997,674.30000000000291,"1,4%"]
["Ikke fordelte udgifter og indtægter","Skema 6.6: Montebello (Nordsjællands Hospitaler)",null,null,null,null,0,""]
["Ikke fordelte udgifter og indtægter","Skema 6.7: Satspulje korrektioner mellem år",null,null,null,null,0,""]
["Ikke fordelte udgifter og indtægter","Skema 6.8: Klinisk farmakologisk rådgivning af praksissektoren",null,null,null,null,0,""]
["Ikke fordelte udgifter og indtægter","Skema 6.9: Tandregulering ifm. operation",null,null,null,null,0,""]
["Ikke fordelte udgifter og indtægter","Skema 6.10: Giftlinjen",null,null,null,null,0,""]
["Ikke fordelte udgifter og indtægter","Skema 6.11: Tjenestemandspensioner",{"$f":"95438.287+27511.28","v":122949.567},{"$f":"121870.718+25762.544","v":147633.26199999999},{"$f":"85455.217+23710.558","v":109165.77500000001},152893.41,{"$f":"IF(ISERROR(C167- D167)=TRUE,\"\",C167 - D167)","v":-24683.694999999992},{"$f":"IF(ISERROR((((C167- D167)/D167)*100)=TRUE),\"\",IF((((C167- D167)/D167)*100)<-7,FIXED(((C167- D167)/D167)*100, 1,TRUE) &\"%\" & \"▼\",IF((((C167- D167)/D167)*100)>7,FIXED(((C167- D167)/D167)*100, 1,TRUE) &\"%\" &\"▲\",FIXED(((C167- D167)/D167)*100, 1,TRUE)&\"%\")))","v":"-16,7%▼"}]
["Ikke fordelte udgifter og indtægter","Skema 6.12: Art 4.6 Betalinger til staten",null,null,null,null,0,""]
["Ikke fordelte udgifter og indtægter","Skema 6.13: Art 4.7 Betalinger til kommuner",700.88099999999997,355.33,null,null,345.55099999999999,"97,2%▲"]
["Ikke fordelte udgifter og indtægter","Skema 6.14: Art 4.8 Betalinger til andre regioner",217722.50599999999,173632.85399999999,120091.25199999999,138437.95800000001,44089.652000000002,"25,4%▲"]
["Ikke fordelte udgifter og indtægter","Skema 6.15: Art 7.6 Betalinger fra staten",null,null,null,null,0,""]
["Ikke fordelte udgifter og indtægter","Skema 6.16: Art 7.7 Betalinger fra kommuner",-21246.017,-21922.124,-28772.506000000001,-17580.333999999999,676.10699999999997,"-3,1%"]
["Ikke fordelte udgifter og indtægter","Skema 6.17: Art 7.8 Betalinger fra andre regioner",-16317.146000000001,-20262.884999999998,-15746.932000000001,-11311.835999999999,3945.7389999999978,"-19,5%▼"]
["Ikke fordelte udgifter og indtægter","Skema 6.18: Betalinger til selvejende, private og udenlandske sygehuse",5042.2910000000002,4249.6689999999999,7381.55,8380.76,792.6220000000003,"18,7%▲"]
["Ikke fordelte udgifter og indtægter","Skema 6.19: Dækningsafgift/ejendomsskat",null,null,null,null,0,""]
["Ikke fordelte udgifter og indtægter","Skema 6.20: Forsikringer/erstatninger",{"$f":"91636.601+50451.4729999999","v":142088.07399999999},{"$f":"97756.477+33152.689","v":130909.166},{"$f":"95131.029+30562.698","v":125693.727},132205.97200000001,11178.907999999996,"8,5%▲"]
["Ikke fordelte udgifter og indtægter","Skema 6.21: Vederlagsfri Lab. –ydelser og andre ydelser til praksissektoren",null,null,null,null,0,""]
["Ikke fordelte udgifter og indtægter","Skema 6.22: Patienttransport",null,null,null,null,0,""]
["Ikke fordelte udgifter og indtægter","Skema 6.23: Serviceydelser til/fra andre institutioner eller sygehuse udenfor regionen",null,null,null,null,0,""]
["Ikke fordelte udgifter og indtægter","Skema 6.24: Udgifter til eksternt finansierede forskning",1015.155,431.80900000000003,1350.028,1426.2670000000001,583.346,"135,1%▲"]
["Ikke fordelte udgifter og indtægter","Skema 6.25: Forebyggelse rettet mod praksissektoren og kommuner",null,null,null,null,0,""]
["Ikke fordelte udgifter og indtægter","Skema 6.26: Praksisreservelæger",85476.240999999995,76251.827999999994,76240.656000000003,70567.445999999996,9224.4130000000005,"12,1%▲"]
["Ikke fordelte udgifter og indtægter","Skema 6.27: Præhospital",425244.9,430019.15600000002,426501.37800000003,447044.76699999999,-4774.2559999999939,"-1,1%"]
["Ikke fordelte udgifter og indtægter","Skema 6.28: Udgifter til Danske Regioner (Kontigent, MedCom, Fællesproj.)",{"$f":"44887.262+14712.299","v":59599.561000000002},{"$f":"31900.279+14247.573","v":46147.851999999999},{"$f":"22910.357+14019.47","v":36929.826999999997},38869.040000000001,13451.709000000003,"29,1%▲"]
["Ikke fordelte udgifter og indtægter","Skema 6.29: Hospice",32181.35,30531.181,29707.96,29124.359,1650.1689999999981,"5,4%"]
["Ikke fordelte udgifter og indtægter","Skema 6.30: Konsulenter(Praksis)",null,null,null,null,0,""]
["Ikke fordelte udgifter og indtægter","Skema 6.31: Videnskabsetisk Komité",null,null,null,null,0,""]
["Ikke fordelte udgifter og indtægter","Skema 6.32: Tolkebistand",-56.311999999999998,null,null,null,-56.311999999999998,""]
["Ikke fordelte udgifter og indtægter","Skema 6.33: Dansk Center for Partikelterapi",null,null,null,null,0,""]
["Ikke fordelte udgifter og indtægter","Skema 6.34: Politisk organisation – overførte udgifter fra funktion 4.10.01, 4.10.02 og 4.10.04",{"$f":"66009.307+181682.003","v":247691.31},{"$f":"72938.539+190050.953","v":262989.49200000003},{"$f":"77682.711+177929.345","v":255612.05599999998},239694.46799999999,-15298.18200000003,"-5,8%"]
["Ikke fordelte udgifter og indtægter","Skema 6.35: Øvrige udgifter, Region Sjælland",null,null,null,null,0,""]
["Ikke fordelte udgifter og indtægter","Skema 6.36: Sundhedsydelser ifm. specialsektor",{"$f":"7937.931+1047.173","v":8985.1039999999994},{"$f":"7798.245+1016.475","v":8814.7199999999993},{"$f":"6749.526+1004.819","v":7754.3449999999993},7535.8540000000003,170.38400000000001,"1,9%"]
["Ikke fordelte udgifter og indtægter","Skema 6.37: Udgifter til primær sundhed fra skema 2",null,null,null,null,0,""]
["Ikke fordelte udgifter og indtægter","Skema 6.38: Udgifter til primær sundhed fra skema 3",null,null,null,null,0,""]
["Ikke fordelte udgifter og indtægter","Skema 6.39: Særlige udgifter ifm. COVID-19",null,-23457.917000000001,73272.611999999994,83193.862999999998,23457.917000000001,"-100,0%▼"]
["Ikke fordelte udgifter og indtægter","Skema 6.40: Udleveret udstyr/tilbehør ifm. cochlear implantater",null,null,null,null,0,""]
["Ikke fordelte udgifter og indtægter","Skema 6.41: Luxturna-behandling, Rigshospitalet",null,null,null,null,0,""]
["Ikke fordelte udgifter og indtægter","Skema 6.42: Udleveret medicin",null,null,null,null,0,""]
["Ikke fordelte udgifter og indtægter","Skema 6.43: Udgifter ifm. sundhedsklynger",null,null,null,null,{"$f":"IF(ISERROR(C199- D199)=TRUE,\"\",C199 - D199)","v":0},{"$f":"IF(ISERROR((((C199- D199)/D199)*100)=TRUE),\"\",IF((((C199- D199)/D199)*100)<-7,FIXED(((C199- D199)/D199)*100, 1,TRUE) &\"%\" & \"▼\",IF((((C199- D199)/D199)*100)>7,FIXED(((C199- D199)/D199)*100, 1,TRUE) &\"%\" &\"▲\",FIXED(((C199- D199)/D199)*100, 1,TRUE)&\"%\")))","v":""}]
["Ikke fordelte udgifter og indtægter","Skema 6.44: Ukrainske patienter under særlov eller asyl",null,null,null,null,0,""]
["Ikke fordelte udgifter og indtægter","Skema 6.45: Udgifter ifm. de særlige pladser i psykiatrien",null,null,null,null,0,""]
["Ikke fordelte udgifter og indtægter","Skema 6.46: Sikringsafdelingen, Region Sjælland",null,null,null,null,0,""]
["Ikke fordelte udgifter og indtægter","Skema 6.47: Øvrige (Kan kun benyttes efter aftale med Sundhedsdatastyrelsen)",null,28492.188999999998,29700.241999999998,7278.72,-28492.188999999998,"-100,0%▼"]
["Ikke fordelte udgifter og indtægter","Lukkede poster (må kun bruges af Sundhedsdatastyrelsen)",null,null,null,null,0,""]
["Ikke fordelte udgifter og indtægter","I alt",{"$f":"SUMIFS((C7:C204),(A7:A204),A205)","v":1476434.9380000003},{"$f":"SUMIFS((D7:D204),(A7:A204),A205)","v":1431717.0870000003},{"$f":"SUMIFS((E7:E204),(A7:A204),A205)","v":1410974.6159999999},{"$f":"SUMIFS((F7:F204),(A7:A204),A205)","v":1482128.4159999997},44717.851000000024,"3,1%"]

{"sheet":"Skema 7","index":6,"n_rows":13,"n_cols":13,"rows_kept":13,"cut":false,"hidden":false,"merged":[[4,1,4,2],[1,1,2,8],[4,4,4,5],[4,7,4,8],[4,10,4,11]]}
["Region Nordjylland, somatiske sygehuse."]
[null,"Skema 7: Vederlagsfrie ydelser mellem sygehusene. (1.000 kr.)"]
[]
[]
["Sygehus",2023,null,2023,2022,null,2022,2021,null,2021,2020,null,2020]
[null,"Leverede","Modtagne","Lev. - Mod.","Leverede","Modtagne","Lev. - Mod.","Leverede","Modtagne","Lev. - Mod.","Leverede","Modtagne","Lev. - Mod."]
["Aalborg Universitetshospital ",60811.133000000002,138878.78400000001,{"$f":"$B$7-$C$7","v":-78067.651000000013},61109.040999999997,138878.78400000001,{"$f":"$E$7-$F$7","v":-77769.743000000017},59533.351999999999,138878.78400000001,{"$f":"$H$7-$I$7","v":-79345.432000000015},41725.192000000003,138878.78400000001,{"$f":"$K$7-$L$7","v":-97153.592000000004}]
["Regionshospital Nordjylland",142262.50899999999,41348.248,{"$f":"$B$8-$C$8","v":100914.261},141619.43599999999,41348.248,{"$f":"$E$8-$F$8","v":100271.18799999999},141203.09,41348.248,{"$f":"$H$8-$I$8","v":99854.842000000004},140364.82999999999,41348.248,{"$f":"$K$8-$L$8","v":99016.581999999995}]
["Øvrige i Region Nordjylland",null,null,{"$f":"$B$9-$C$9","v":0},null,null,{"$f":"$E$9-$F$9","v":0},null,null,{"$f":"$H$9-$I$9","v":0},null,null,{"$f":"$K$9-$L$9","v":0}]
["Ikke fordelte udgifter Region Nordjylland, somatik",null,null,{"$f":"$B$10-$C$10","v":0},null,null,{"$f":"$E$10-$F$10","v":0},null,null,{"$f":"$H$10-$I$10","v":0},null,null,{"$f":"$K$10-$L$10","v":0}]
["I alt",{"$f":"SUM(B7:B10)","v":203073.64199999999},{"$f":"SUM(C7:C10)","v":180227.03200000001},{"$f":"SUM(D7:D10)","v":22846.609999999986},{"$f":"SUM(E7:E10)","v":202728.47699999998},180227.03200000001,22501.444999999978,200736.44199999998,180227.03200000001,20509.409999999989,{"$f":"SUM(K7:K10)","v":182090.022},180227.03200000001,1862.9899999999907]
[]
["NB: Afstem med psykiatrien"]

{"sheet":"Rapport","index":7,"n_rows":99,"n_cols":6,"rows_kept":99,"cut":false,"hidden":false,"merged":[]}
[]
[null,"Skema 1: Udgifter og indtægter på sygehusene/enhederne, eksklusiv omkostningssted 0001, Fælleskonto. (1.000 kr.)"]
[null,null,2023,2022,2021,2020]
[null,"Hovedart 1: Lønninger",5092179.92,5081091.9919999996,4811104.79,4605934.8440000005]
[null,"Hovedart 2: Varekøb",968486.60599999991,950646.22200000007,917818.90499999991,861052.04499999993]
[null,"Hovedart 4: Tjenesteydelser m.v. ",891861.41599999997,921066.66999999993,780682.47100000002,681356.29800000007]
[null,"Hovedart 5: Tilskud og overførsler",30,30,20,50]
[null,"Hovedart 6: Finansudgifter",0,0,0,0]
[null,"Hovedart 7: Indtægter",-164259.31900000002,-153320.25100000002,-144242.13800000001,-105514.40699999999]
[null,"Hovedart 8: Finansindtægter",-49.999000000000002,-84.665000000000006,-99.364999999999995,-91.665000000000006]
[null,"Hovedart 9: Interne udgifter og indtægter",1078438.993,1054904.676,1026309.613,1053817.402]
[null,"I alt",7866687.6169999996,7854334.6439999994,7391594.2759999996,7096604.517]
[]
[null,"Skema 2: Fællesudgifter og -indtægter vedrørende sygehusene.\n(1.000 kr.)"]
[null,null,2023,2022,2021,2020]
[null,"Hovedart 1: Lønninger",786213.804,781510.40599999996,718833.11199999996,541964.353]
[null,"Hovedart 2: Varekøb",894212.13,1072705.2509999999,1065211.7150000001,1039180.0640000001]
[null,"Hovedart 4: Tjenesteydelser m.v. ",1562168.5109999999,1700994.26,1957269.1810000001,1765954.93]
[null,"Hovedart 5: Tilskud og overførsler",168838.54300000001,182814.53899999999,141314.97200000001,204873.02299999999]
[null,"Hovedart 6: Finansudgifter",40164.815000000002,20522.367999999999,0,0]
[null,"Hovedart 7: Indtægter",-656723.34200000006,-606015.46299999999,-581539.43900000001,-553483.87600000005]
[null,"Hovedart 8: Finansindtægter",-34004.149000000005,-282367.75799999997,-364987.826,-63134.343999999997]
[null,"Hovedart 9: Interne udgifter og indtægter",-1190008.1439999999,-1181135.1230000001,-1145072.7250000001,-1164870.9890000001]
[null,"I alt",1570862.1679999996,1689028.48,1791028.99,1770483.1610000003]
[]
[null,"Skema 3:Regionale fællesudgifter og -indtægter. (1.000 kr.)"]
[null,null,2023,2022,2021,2020]
[null,"1.70.50: Andel af fællesudgifter",441569.89899999998,413432.21400000004,386903.60399999999,352151.62300000002]
[null,"1.60.40: Andel af central administration af sundhed (til og med 2019)",0,0,0,0]
[null,"1.60.41: Andel af øvrige udgifter og indtægter",5695.0429999999997,4771.4470000000001,4269.0829999999996,4257.1080000000002]
[null,"1.50.33: Andel af central administration af sundhed (ekskl. psykiatri)",41443.024999999994,45929.98,46638.569000000003,41994.106]
[null,"1.50.35: Administration af det psykiatriske område (kun central del)",0,0,0,0]
[null,"I alt",488707.96699999995,464133.64099999995,437811.25600000005,398402.837]
[]
[null,"Skema 4: Udgifter og indtægter til og fra psykiatriske afdelinger konteret på somatiske sygehuse. (1.000 kr.)"]
[null,null,2023,2022,2021,2020]
[null,"Korrektion",0,0,0,0]
[null,"Lønudg. på psyk. afd.,somatiske sygehuse",0,0,0,0]
[null,"Øvrige udg. til psyk. afd.,somatiske sygehuse",0,0,0,0]
[null,"I alt",0,0,0,0]
[]
[null,"Skema 5: Leasing- og huslejeudgifter. (1.000 kr.)"]
[null,null,2023,2022,2021,2020]
[null,"Andre udgifter",0,0,0,0]
[null,"Leasing- og lejeudgifter",34831.057999999997,124241.114,204216.40399999998,184073.33199999999]
[null,"Huslejeudgifter",18042.835000000003,16191.542000000001,15304.66,14532.378000000001]
[null,"I alt",52873.893000000004,140432.65600000002,219521.06399999998,198605.71000000002]
[]
[null,"Skema 6: Udgifter til andet end patientbehandling. (1.000 kr.)"]
[null,null,2023,2022,2021,2020]
[null,"Skema 6.1: Center for voldsramte (Bispebjerg)",0,0,0,0]
[null,"Skema 6.2: Ventilatørbistand i hjemmet, respiratorpatienter",116777.997,108996.329,110986.451,109479.769]
[null,"Skema 6.3: Blodprøvetagning i eget hjem",0,0,0,0]
[null,"Skema 6.4: Psykinfo + pårørende",0,0,0,0]
[null,"Skema 6.5: Leveret udstyr til patienter i eget hjem, ilt og sonderemedier",48579.476000000002,47905.175999999999,45106.195,45085.615999999995]
[null,"Skema 6.6: Montebello (Nordsjællands Hospitaler)",0,0,0,0]
[null,"Skema 6.7: Satspulje korrektioner mellem år",0,0,0,0]
[null,"Skema 6.8: Klinisk farmakologisk rådgivning af praksissektoren",1455.9280000000001,1246,1081,700]
[null,"Skema 6.9: Tandregulering ifm. operation",0,0,0,0]
[null,"Skema 6.10: Giftlinjen",0,0,0,0]
[null,"Skema 6.11: Tjenestemandspensioner",122949.567,147633.26199999999,109165.77500000001,152893.41]
[null,"Skema 6.12: Art 4.6 Betalinger til staten",6968.43,6101.4659999999994,5660.5079999999998,3698.17]
[null,"Skema 6.13: Art 4.7 Betalinger til kommuner",7345.0230000000001,3049.8869999999997,7190.62,4476.2489999999998]
[null,"Skema 6.14: Art 4.8 Betalinger til andre regioner",776303.1370000001,714193.50899999985,636316.65700000001,527390.23899999994]
[null,"Skema 6.15: Art 7.6 Betalinger fra staten",-7150.5480000000007,-6718.0220000000008,-6627.6580000000004,-5979.98]
[null,"Skema 6.16: Art 7.7 Betalinger fra kommuner",-24763.545999999998,-25392.46,-32462.735000000001,-19472.638999999999]
[null,"Skema 6.17: Art 7.8 Betalinger fra andre regioner",-170019.96599999999,-151326.299,-160912.035,-23159.714]
[null,"Skema 6.18: Betalinger til selvejende, private og udenlandske sygehuse",207964.212,217212.87899999999,155441.37699999998,93785.497999999992]
[null,"Skema 6.19: Dækningsafgift/ejendomsskat",19670.052,19625.378000000001,19459.101000000002,18578.111000000001]
[null,"Skema 6.20: Forsikringer/erstatninger",142087.62,130908.732,125693.29700000001,132205.54300000001]
[null,"Skema 6.21: Vederlagsfri Lab. –ydelser og andre ydelser til praksissektoren",216594.603,216512.21100000001,207831.62400000001,219703.40100000001]
[null,"Skema 6.22: Patienttransport",95374.846999999994,74998.41,92508.092999999993,88786.625]
[null,"Skema 6.23: Serviceydelser til/fra andre institutioner eller sygehuse udenfor regionen",0,0,0,0]
[null,"Skema 6.24: Udgifter til eksternt finansierede forskning",1015.155,431.80900000000003,1350.028,1426.2670000000001]
[null,"Skema 6.25: Forebyggelse rettet mod praksissektoren og kommuner",73.622,445.83600000000001,-99.557000000000002,1991.6320000000001]
[null,"Skema 6.26: Praksisreservelæger",85476.240999999995,76251.827999999994,76240.656000000003,70567.445999999996]
[null,"Skema 6.27: Præhospital",425313.696,430107.75800000003,426711.21800000005,447903.19799999997]
[null,"Skema 6.28: Udgifter til Danske Regioner (Kontigent, MedCom, Fællesproj.)",59599.561000000002,46147.851999999999,36929.826999999997,38869.040000000001]
[null,"Skema 6.29: Hospice",38624.758000000002,36211.711000000003,35286.345000000001,34989.235000000001]
[null,"Skema 6.30: Konsulenter(Praksis)",0,0,0,0]
[null,"Skema 6.31: Videnskabsetisk Komité",0,0,0,0]
[null,"Skema 6.32: Tolkebistand",2614.1220000000003,1813.732,1711.0989999999999,1727.3589999999999]
[null,"Skema 6.33: Dansk Center for Partikelterapi",0,0,0,0]
[null,"Skema 6.34: Politisk organisation – overførte udgifter fra funktion 4.10.01, 4.10.02 og 4.10.04",247691.31,262989.49200000003,255612.05599999998,239694.46799999999]
[null,"Skema 6.35: Øvrige udgifter, Region Sjælland",0,0,0,0]
[null,"Skema 6.36: Sundhedsydelser ifm. specialsektor",9206.8069999999989,9072.4349999999995,7754.3449999999993,7535.8540000000003]
[null,"Skema 6.37: Udgifter til primær sundhed fra skema 2",0,0,0,0]
[null,"Skema 6.38: Udgifter til primær sundhed fra skema 3",0,0,0,0]
[null,"Skema 6.39: Særlige udgifter ifm. COVID-19",0,232134.26199999999,345298.03599999996,277235.815]
[null,"Skema 6.40: Udleveret udstyr/tilbehør ifm. cochlear implantater",1535.569,2149.9479999999999,1284.287,0]
[null,"Skema 6.41: Luxturna-behandling, Rigshospitalet",0,0,0,0]
[null,"Skema 6.42: Udleveret medicin",265137.826,215949.59599999999,323654.641,0]
[null,"Skema 6.43: Udgifter ifm. sundhedsklynger",0,0,0,0]
[null,"Skema 6.44: Ukrainske patienter under særlov eller asyl",0,0,0,0]
[null,"Skema 6.45: Udgifter ifm. de særlige pladser i psykiatrien",0,0,0,0]
[null,"Skema 6.46: Sikringsafdelingen, Region Sjælland",0,0,0,0]
[null,"Skema 6.47: Øvrige (Kan kun benyttes efter aftale med Sundhedsdatastyrelsen)",0,28492.188999999998,29700.241999999998,7278.72]
[null,"Lukkede poster (må kun bruges af Sundhedsdatastyrelsen)",0,0,0,0]
[null,"I alt",2696425.4989999998,2847144.906,2857871.4929999998,2477389.3319999995]

{"sheet":"Rapport SGH","index":8,"n_rows":11,"n_cols":9,"rows_kept":11,"cut":false,"hidden":false,"merged":[]}
[2023,"Skema 1","Skema 2","Skema 3","Skema 4","Skema 5","Skema 6","Skema 7","I alt"]
["Aalborg Universitetshospital ",6549859.1229999997,275477.91800000018,166494.74899999998,0,31069.493000000002,1102295.8209999998,-78067.651000000013,{"$f":"(SUM(B2:D2))- (SUM(E2:H2))","v":5936534.1270000003}]
["Regionshospital Nordjylland",1316828.4940000002,76270.549000000028,46808.989000000001,0,3721.4079999999999,117694.73999999999,100914.261,{"$f":"(SUM(B3:D3))- (SUM(E3:H3))","v":1217577.6230000004}]
["Øvrige i Region Nordjylland",0,0,0,0,0,0,0,0]
["Ikke fordelte udgifter og indtægter",0,1219113.7009999994,275404.22899999999,0,18082.991999999998,1476434.9380000003,0,0]
[]
[2022]
["Aalborg Universitetshospital ",6528557.466,348881.75000000012,155843.46999999997,0,45190.653000000006,1243119.8349999997,-77769.743000000017,{"$f":"(SUM(B8:D8))- (SUM(E8:H8))","v":5822741.9409999996}]
["Regionshospital Nordjylland",1325777.1779999998,85456.888999999981,44059.938000000002,0,8039.0129999999999,172307.984,100271.18799999999,1174675.8199999998]
["Øvrige i Region Nordjylland",0,0,0,0,0,0,0,0]
["Ikke fordelte udgifter og indtægter",0,1254689.8409999998,264230.23300000001,0,87202.99,1431717.0870000003,0,-3.0000004917383194E-3]

{"sheet":"Afstemning af ikke fordelte","index":9,"n_rows":9,"n_cols":2,"rows_kept":9,"cut":false,"hidden":false,"merged":[]}
["Afstemning af Ikke fordelte indtægter- og udgifter"]
["1.000 kr.","2023"]
["Skema 1",0]
["Skema 2",1219113.7009999994]
["Skema 3",275404.22899999999]
["Skema 4",0]
["Skema 5",18082.991999999998]
["Skema 6",1476434.9380000003]
["1+2+3-4-5-6",{"$f":"+B3+B4+B5-B6-B7-B8","v":0}]

{"sheet":"Afstemning øvrige region","index":10,"n_rows":9,"n_cols":2,"rows_kept":9,"cut":false,"hidden":false,"merged":[]}
["Afstemning af Øvrige i Region Nordjylland"]
["1.000 kr.","2023"]
["Skema 1",0]
["Skema 2",0]
["Skema 3",0]
["Skema 4",0]
["Skema 5",0]
["Skema 6",0]
["1+2+3-4-5-6",{"$f":"+B3+B4+B5-B6-B7-B8","v":0}]